bitfinex/quotes_SOLUSD_20220105
["timestamp","ask_amount","ask_price","bid_price","bid_amount"]
[1641340997218,9.02,167.57,167.43,28.73967806]
[1641340997519,8.52,167.57,167.43,28.73967806]
[1641340997716,2.78172928,167.56,167.43,52.56567806]
[1641340997915,25.29868627,167.56,167.43,52.56567806]
[1641340999518,25.29868627,167.56,167.43,24.586]
[1641340999720,25.29868627,167.56,167.43,24.49545941]
[1641340999920,25.79868627,167.56,167.43,23.99545941]
[1641341000120,26.05868627,167.56,167.43,23.99545941]
[1641341000821,36.02719413,167.56,167.43,23.99545941]
[1641341001020,36.02719413,167.56,167.43,23.826]
[1641341001221,34.57868627,167.56,167.43,22.5495]
[1641341001520,1.44850786,167.55,167.43,22.5495]
[1641341001720,8.52,167.54,167.43,22.5495]
[1641341001920,2.65768359,167.53,167.43,22.5495]
[1641341002120,8.52,167.52,167.43,22.5495]
[1641341002323,9.96850786,167.52,167.42,0.14932957]
[1641341002520,10.72850786,167.52,167.42,0.14932957]
[1641341002722,26.22256924,167.51,167.42,0.14932957]
[1641341003020,11.30343317,167.5,167.42,0.14932957]
[1641341003421,11.80343317,167.5,167.42,0.14932957]
[1641341003620,12.06343317,167.5,167.42,0.14932957]
[1641341004043,0.94850786,167.49,167.42,0.14932957]
[1641341004443,3.28343317,167.5,167.42,0.14932957]
[1641341005045,2.78343317,167.5,167.42,0.14932957]
[1641341010857,3.28343317,167.5,167.42,0.14932957]
[1641341011153,2.78343317,167.5,167.42,0.14932957]
[1641341011752,24.77406138,167.51,167.42,0.14932957]
[1641341011953,25.27406138,167.51,167.42,0.14932957]
[1641341013053,8.52,167.57,167.43,1.44850786]
[1641341013256,11.46671311,167.59,167.43,1.44850786]
[1641341013453,0.5,167.57,167.44,9.7568]
[1641341013658,0.5,167.57,167.45,23.2168]
[1641341013854,22.60487506,167.57,167.46,39.1685682]
[1641341014056,22.60487506,167.57,167.46,40.87707606]
[1641341014355,22.60487506,167.57,167.47,1.44850786]
[1641341014554,8.52,167.63,167.47,1.70850786]
[1641341014756,4.24511311,167.65,167.48,8.52]
[1641341014957,2.17801311,167.65,167.49,46.5566]
[1641341015354,2.17801311,167.65,167.49,48.76510786]
[1641341015554,23.85752668,167.64,167.5,31.66478808]
[1641341015755,26.65528874,167.64,167.5,31.66478808]
[1641341015956,26.65528874,167.64,167.5,32.42478808]
[1641341016155,26.65528874,167.64,167.51,1.44850786]
[1641341016556,26.65528874,167.64,167.51,2.20850786]
[1641341017056,26.65528874,167.64,167.52,1.44850786]
[1641341017255,26.65528874,167.64,167.52,8.38550786]
[1641341017459,26.65528874,167.64,167.52,9.14550786]
[1641341017656,26.65528874,167.64,167.53,1.44850786]
[1641341017855,26.65528874,167.64,167.54,30.13119224]
[1641341018054,26.65528874,167.64,167.54,30.39119224]
[1641341018257,26.65528874,167.64,167.54,30.89119224]
[1641341018457,8.52,167.68,167.54,30.89119224]
[1641341018657,8.52,167.7,167.55,1.44850786]
[1641341018858,1.67801311,167.71,167.55,26.78350786]
[1641341019059,1.67801311,167.71,167.56,24.9806]
[1641341019258,1.67801311,167.71,167.56,32.53610786]
[1641341019458,32.31145136,167.7,167.57,1.44850786]
[1641341019659,32.31145136,167.7,167.58,31.69375862]
[1641341019858,32.81145136,167.7,167.58,32.19375862]
[1641341020162,32.81145136,167.7,167.58,32.45375862]
[1641341020358,32.81145136,167.7,167.59,1.44850786]
[1641341020560,29.49584114,167.7,167.59,1.70850786]
[1641341020757,29.49584114,167.7,167.59,2.20850786]
[1641341021761,29.99584114,167.7,167.59,2.20850786]
[1641341021960,32.21882567,167.7,167.59,2.20850786]
[1641341022162,32.21882567,167.7,167.59,10.72850786]
[1641341022662,1.44850786,167.69,167.57,97.374]
[1641341022859,1.94850786,167.69,167.57,97.374]
[1641341023061,2.20850786,167.69,167.57,97.374]
[1641341023962,2.20850786,167.69,167.57,97.634]
[1641341024260,3.88652097,167.69,167.57,97.634]
[1641341025060,0.76,167.69,167.57,97.634]
[1641341025462,42.67683878,167.7,167.57,97.634]
[1641341025663,40.99882567,167.7,167.57,97.634]
[1641341026261,40.99882567,167.7,167.57,0.26]
[1641341026462,52.83665275,167.7,167.51,75.4733]
[1641341026664,62.86865905,167.7,167.52,24.701]
[1641341027261,1.2864,167.69,167.51,26.61089799]
[1641341027463,10.19801311,167.68,167.51,27.11089799]
[1641341027662,10.19801311,167.68,167.52,49.2884]
[1641341027663,11.64652097,167.68,167.52,49.2884]
[1641341027864,12.40652097,167.68,167.52,49.2884]
[1641341028262,1.44850786,167.67,167.52,49.2884]
[1641341028461,31.37379576,167.66,167.52,49.2884]
[1641341028961,31.87379576,167.66,167.52,49.7884]
[1641341029162,31.87379576,167.66,167.52,58.3084]
[1641341029361,31.37379576,167.66,167.52,58.3084]
[1641341029563,31.37379576,167.66,167.53,1.44850786]
[1641341029763,31.37379576,167.66,167.53,8.46950786]
[1641341029992,31.37379576,167.66,167.53,9.22950786]
[1641341030164,12.42099764,167.7,167.54,1.44850786]
[1641341030370,12.92099764,167.7,167.55,8.52]
[1641341030565,12.92099764,167.7,167.55,10.0198]
[1641341030764,12.92099764,167.7,167.55,11.96830786]
[1641341030968,4.40099764,167.7,167.56,101.5616]
[1641341031166,33.43701835,167.7,167.58,27.70883065]
[1641341031369,33.43701835,167.7,167.58,35.27783065]
[1641341031567,31.75900524,167.7,167.58,35.53783065]
[1641341033569,31.75900524,167.7,167.58,44.05783065]
[1641341034571,31.75900524,167.7,167.58,36.98883065]
[1641341035371,31.75900524,167.7,167.58,9.28]
[1641341035574,33.2075131,167.7,167.58,0.76]
[1641341035874,33.2075131,167.7,167.57,0.5]
[1641341036071,33.4675131,167.7,167.56,102.0616]
[1641341036271,8.52,167.69,167.56,0.5]
[1641341036472,8.78,167.69,167.56,0.5]
[1641341036675,1.44850786,167.68,167.52,24.43]
[1641341036873,8.52,167.67,167.47,107.7143]
[1641341037073,8.78,167.67,167.47,107.7143]
[1641341037274,1.44850786,167.66,167.47,107.7143]
[1641341037500,26.69299042,167.64,167.47,138.8280999]
[1641341037873,27.45299042,167.64,167.47,139.3280999]
[1641341038076,27.19299042,167.64,167.47,139.5880999]
[1641341038477,27.19299042,167.64,167.47,108.4743]
[1641341039175,27.19299042,167.64,167.47,107.9743]
[1641341039376,27.19299042,167.64,167.47,108.4743]
[1641341039575,27.19299042,167.64,167.47,132.78796066]
[1641341039777,27.19299042,167.64,167.48,1.44850786]
[1641341040074,27.19299042,167.64,167.48,2.20850786]
[1641341040281,27.19299042,167.64,167.49,23.6666]
[1641341040476,27.19299042,167.64,167.49,25.87510786]
[1641341041277,27.19299042,167.64,167.49,34.39510786]
[1641341041486,27.19299042,167.64,167.5,1.44850786]
[1641341041487,26.69299042,167.64,167.5,1.44850786]
[1641341041677,26.69299042,167.64,167.51,26.31153808]
[1641341041877,26.69299042,167.64,167.51,26.81153808]
[1641341042076,26.69299042,167.64,167.51,27.07153808]
[1641341042778,26.69299042,167.64,167.51,0.76]
[1641341042981,27.45299042,167.64,167.5,0.5]
[1641341043181,35.97299042,167.64,167.49,23.6666]
[1641341043476,1.44850786,167.63,167.45,1.3539]
[1641341043676,8.52,167.62,167.43,1.44850786]
[1641341043878,9.02,167.62,167.42,0.14932957]
[1641341044077,22.6623729,167.6,167.42,73.70992957]
[1641341044278,8.52,167.59,167.42,73.70992957]
[1641341044477,2.8595485,167.58,167.42,97.72162957]
[1641341044679,28.47163812,167.56,167.42,97.98162957]
[1641341044878,28.47163812,167.56,167.42,108.45013743]
[1641341045688,28.47163812,167.56,167.42,116.9774684]
[1641341046287,2.8595485,167.58,167.42,116.9774684]
[1641341047086,2.8595485,167.58,167.42,118.3162684]
[1641341048291,2.8595485,167.58,167.42,109.78893743]
[1641341049995,3.1195485,167.58,167.42,109.78893743]
[1641341050193,3.6195485,167.58,167.42,109.78893743]
[1641341050795,4.5914485,167.58,167.42,109.52893743]
[1641341050995,4.0914485,167.58,167.42,109.52893743]
[1641341051594,2.8595485,167.58,167.42,109.52893743]
[1641341051993,2.8595485,167.58,167.42,109.78893743]
[1641341052518,1.1931892,167.58,167.42,109.78893743]
[1641341053116,30.48867304,167.6,167.42,109.78893743]
[1641341053615,30.48867304,167.6,167.42,169.20893743]
[1641341055215,30.48867304,167.6,167.42,109.78893743]
[1641341055416,30.48867304,167.6,167.42,109.52893743]
[1641341056618,30.48867304,167.6,167.42,109.78893743]
[1641341057219,30.48867304,167.6,167.42,109.52893743]
[1641341058818,30.48867304,167.6,167.42,109.78893743]
[1641341059422,30.98867304,167.6,167.42,109.78893743]
[1641341059622,2.5914041,167.59,167.42,109.78893743]
[1641341061623,2.5914041,167.59,167.42,118.3162684]
[1641341063425,2.5914041,167.59,167.42,118.0562684]
[1641341065326,2.5914041,167.59,167.42,118.3162684]
[1641341067027,3.0914041,167.59,167.42,118.3162684]
[1641341067430,3.0914041,167.59,167.42,109.52893743]
[1641341067626,3.3514041,167.59,167.42,109.52893743]
[1641341068227,3.0914041,167.59,167.42,109.52893743]
[1641341068427,1.2362,167.58,167.42,109.52893743]
[1641341069028,1.2362,167.58,167.42,109.78893743]
[1641341069327,1.2362,167.58,167.42,109.52893743]
[1641341069526,1.9962,167.58,167.42,109.52893743]
[1641341070526,1.9962,167.58,167.42,109.78893743]
[1641341070727,1.9962,167.58,167.42,109.52893743]
[1641341071340,1.7362,167.58,167.42,109.52893743]
[1641341071527,1.2362,167.58,167.42,109.52893743]
[1641341071729,2.5914041,167.59,167.42,118.0562684]
[1641341071927,2.5914041,167.59,167.42,125.6112684]
[1641341072128,2.5914041,167.59,167.42,125.8712684]
[1641341073130,2.5914041,167.59,167.42,125.6112684]
[1641341073329,2.5914041,167.59,167.42,117.08393743]
[1641341073528,26.9669041,167.59,167.42,109.52893743]
[1641341074333,9.8687,167.58,167.42,109.52893743]
[1641341074732,10.6287,167.58,167.42,109.52893743]
[1641341075133,10.6287,167.58,167.42,136.94780884]
[1641341075532,10.6287,167.58,167.42,137.20780884]
[1641341075935,10.6287,167.58,167.42,108.19013743]
[1641341076134,10.6287,167.58,167.42,99.67013743]
[1641341076939,10.6287,167.58,167.42,75.15843743]
[1641341077136,10.6287,167.58,167.42,1.59783743]
[1641341077537,2.63418059,167.56,167.42,1.59783743]
[1641341077738,11.15418059,167.56,167.42,1.59783743]
[1641341078039,11.91418059,167.56,167.42,1.59783743]
[1641341078242,11.91418059,167.56,167.42,0.14932957]
[1641341078441,11.91418059,167.56,167.42,0.64932957]
[1641341078762,11.91418059,167.56,167.42,2.09783743]
[1641341078963,1.318,167.55,167.43,25.04533449]
[1641341079162,1.318,167.55,167.42,9.13983743]
[1641341079363,1.818,167.55,167.42,9.13983743]
[1641341079764,1.818,167.55,167.42,9.39983743]
[1641341079965,1.318,167.55,167.42,9.39983743]
[1641341080164,1.318,167.55,167.42,32.5968174]
[1641341080464,1.578,167.55,167.43,79.515]
[1641341080865,2.078,167.55,167.43,80.275]
[1641341083369,11.15418059,167.56,167.43,80.275]
[1641341083770,11.65418059,167.56,167.43,80.275]
[1641341084169,11.65418059,167.56,167.43,0.76]
[1641341084368,11.65418059,167.56,167.43,0.26]
[1641341084570,11.91418059,167.56,167.42,0.14932957]
[1641341085569,1.3057,167.55,167.42,0.14932957]
[1641341085970,2.0657,167.55,167.42,0.14932957]
[1641341086370,2.0657,167.55,167.42,1.59783743]
[1641341086571,2.0657,167.55,167.42,0.64932957]
[1641341087173,1.8057,167.55,167.42,0.14932957]
[1641341087372,2.0657,167.55,167.42,0.14932957]
[1641341088371,2.0657,167.55,167.43,1.44850786]
[1641341088572,2.0657,167.55,167.43,0.26]
[1641341088771,1.8057,167.55,167.43,2.20850786]
[1641341088974,1.8057,167.55,167.43,1.70850786]
[1641341089173,1.8057,167.55,167.43,0.26]
[1641341089174,8.52,167.54,167.43,0.26]
[1641341089476,32.080334,167.53,167.42,0.14932957]
[1641341089674,64.626834,167.53,167.42,0.14932957]
[1641341089875,65.126834,167.53,167.42,0.14932957]
[1641341090273,1.2414,167.52,167.42,0.14932957]
[1641341090473,1.5014,167.52,167.42,0.14932957]
[1641341090675,2.0014,167.52,167.42,0.14932957]
[1641341094578,2.9325926,167.5,167.42,0.14932957]
[1641341094980,27.0452926,167.5,167.42,0.14932957]
[1641341095582,1.2509,167.49,167.42,0.14932957]
[1641341095777,11.21940786,167.49,167.42,0.14932957]
[1641341095978,11.97940786,167.49,167.42,0.14932957]
[1641341096182,10.5309,167.49,167.42,0.14932957]
[1641341098184,1.44850786,167.48,167.42,0.14932957]
[1641341098385,10.747174,167.47,167.42,0.14932957]
[1641341098684,29.00300534,167.46,167.42,0.14932957]
[1641341098885,8.52,167.45,167.42,0.14932957]
[1641341099086,2.78202243,167.44,167.42,0.14932957]
[1641341099288,0.5,167.45,167.42,0.14932957]
[1641341099485,30.36110534,167.46,167.42,0.14932957]
[1641341099686,1.3581,167.46,167.42,0.14932957]
[1641341099886,8.52,167.48,167.42,0.14932957]
[1641341100090,8.52,167.49,167.42,0.14932957]
[1641341100288,11.01429483,167.49,167.42,0.14932957]
[1641341100490,2.99429483,167.49,167.42,0.14932957]
[1641341100687,23.14985123,167.48,167.42,0.14932957]
[1641341101990,23.90985123,167.48,167.42,0.14932957]
[1641341102388,23.64985123,167.48,167.42,0.14932957]
[1641341102790,0.5,167.48,167.42,0.14932957]
[1641341103088,1.7653,167.5,167.42,0.14932957]
[1641341103287,1.2653,167.5,167.42,0.14932957]
[1641341103888,28.86658301,167.49,167.42,0.14932957]
[1641341105989,1.3385,167.52,167.42,0.14932957]
[1641341106288,23.2864,167.54,167.42,0.14932957]
[1641341106490,1.2396,167.56,167.42,0.14932957]
[1641341106690,1.2396,167.56,167.43,8.52]
[1641341106887,26.22158398,167.55,167.43,0.5]
[1641341107090,29.02404816,167.55,167.44,25.34128731]
[1641341107287,29.02404816,167.55,167.44,33.86128731]
[1641341107488,29.02404816,167.55,167.44,25.60128731]
[1641341108191,29.02404816,167.55,167.44,0.26]
[1641341108589,29.02404816,167.55,167.44,8.52]
[1641341109190,29.02404816,167.55,167.45,30.36725693]
[1641341109389,1.2396,167.56,167.45,30.36725693]
[1641341109590,1.3272,167.57,167.45,30.86725693]
[1641341109791,88.28371311,167.61,167.45,30.86725693]
[1641341109990,1.67801311,167.6,167.46,9.8815]
[1641341110190,1.67801311,167.6,167.46,14.5335]
[1641341110392,2.77972809,167.59,167.46,15.2935]
[1641341110591,2.77972809,167.59,167.47,24.2623]
[1641341110794,26.59717735,167.6,167.47,25.71080786]
[1641341110993,26.59717735,167.6,167.48,1.44850786]
[1641341111192,26.59717735,167.6,167.48,9.96850786]
[1641341111398,1.2385,167.63,167.48,10.72850786]
[1641341111592,1.2385,167.63,167.49,26.07370786]
[1641341111792,2.75328314,167.63,167.49,34.59370786]
[1641341111994,2.75328314,167.63,167.5,1.44850786]
[1641341112192,2.75328314,167.63,167.51,8.52]
[1641341112393,2.75328314,167.63,167.52,28.24715966]
[1641341112599,2.75328314,167.63,167.52,28.50715966]
[1641341112800,2.75328314,167.63,167.52,29.00715966]
[1641341113199,5.03511687,167.77,167.52,29.00715966]
[1641341113404,2.17801311,167.69,167.53,33.1921]
[1641341113599,2.17801311,167.69,167.54,1.3064]
[1641341113802,2.17801311,167.69,167.54,9.8264]
[1641341114001,0.5,167.69,167.55,23.6305]
[1641341114202,2.22417862,167.68,167.56,8.52]
[1641341114402,30.23421408,167.7,167.56,9.02]
[1641341114602,0.5,167.7,167.57,74.0728]
[1641341114801,0.5,167.7,167.58,8.52]
[1641341115002,0.5,167.7,167.58,8.78]
[1641341115203,2.17801311,167.73,167.58,9.28]
[1641341115404,2.55503536,167.72,167.58,9.28]
[1641341115603,26.22054242,167.72,167.59,55.47521606]
[1641341115803,26.72054242,167.72,167.59,61.32421606]
[1641341116006,26.72054242,167.72,167.59,62.08421606]
[1641341116803,26.72054242,167.72,167.59,56.23521606]
[1641341117411,26.72054242,167.72,167.59,57.48041606]
[1641341117605,26.22054242,167.72,167.59,57.48041606]
[1641341118205,26.22054242,167.72,167.59,26.281]
[1641341118607,26.48054242,167.72,167.59,26.281]
[1641341118809,26.98054242,167.72,167.59,26.281]
[1641341119005,28.42905028,167.72,167.59,25.781]
[1641341119207,29.84706339,167.72,167.59,25.781]
[1641341119806,29.84706339,167.72,167.59,26.041]
[1641341121129,28.16905028,167.72,167.59,26.041]
[1641341121329,26.72054242,167.72,167.59,26.041]
[1641341121526,26.72054242,167.72,167.59,33.875]
[1641341121727,3.05503536,167.72,167.59,42.395]
[1641341124834,3.05503536,167.72,167.59,34.801]
[1641341125033,3.31503536,167.72,167.59,26.281]
[1641341125234,4.76354322,167.72,167.59,26.281]
[1641341125534,3.31503536,167.72,167.59,26.281]
[1641341125734,8.52,167.71,167.59,26.281]
[1641341126032,0.5,167.71,167.59,26.281]
[1641341126239,0.5,167.71,167.59,26.541]
[1641341126434,4.28563536,167.72,167.59,26.541]
[1641341126634,4.28563536,167.72,167.6,8.52]
[1641341127035,4.28563536,167.72,167.6,9.28]
[1641341128142,3.05503536,167.72,167.6,9.28]
[1641341131043,3.05503536,167.72,167.6,0.76]
[1641341131271,3.31503536,167.72,167.6,0.5]
[1641341131446,3.31503536,167.72,167.59,34.801]
[1641341131943,3.31503536,167.72,167.59,26.281]
[1641341132143,3.31503536,167.72,167.59,34.801]
[1641341132344,11.83503536,167.72,167.59,26.281]
[1641341132546,11.83503536,167.72,167.59,26.541]
[1641341132942,3.31503536,167.72,167.6,8.52]
[1641341133342,3.31503536,167.72,167.6,0.76]
[1641341133545,11.83503536,167.72,167.59,25.781]
[1641341133745,11.83503536,167.72,167.59,24.5358]
[1641341133944,13.28354322,167.72,167.55,1.277]
[1641341134145,24.9141,167.71,167.55,24.0738]
[1641341134344,8.52,167.7,167.55,22.7968]
[1641341134545,109.1952524,167.69,167.52,73.8342]
[1641341134743,109.1952524,167.69,167.5,26.13061987]
[1641341134744,8.52,167.68,167.5,26.13061987]
[1641341134944,25.14035977,167.67,167.5,26.63061987]
[1641341135145,8.52,167.66,167.51,23.0224]
[1641341135347,2.86622909,167.65,167.51,23.5224]
[1641341135545,12.14622909,167.65,167.51,23.0224]
[1641341135745,13.48682909,167.65,167.51,23.0224]
[1641341136346,14.93533695,167.65,167.51,23.0224]
[1641341137246,14.93533695,167.65,167.51,23.2824]
[1641341139449,14.93533695,167.65,167.51,23.0224]
[1641341140055,14.93533695,167.65,167.43,8.52]
[1641341140253,14.93533695,167.65,167.42,0.14932957]
[1641341140254,2.94833256,167.62,167.42,0.14932957]
[1641341140555,9.96850786,167.61,167.42,0.14932957]
[1641341140953,2.66805165,167.59,167.42,0.14932957]
[1641341141154,8.52,167.58,167.42,73.73442957]
[1641341141360,9.02,167.58,167.42,73.73442957]
[1641341141556,9.28,167.58,167.42,73.99442957]
[1641341141756,10.6089,167.58,167.42,73.99442957]
[1641341142356,33.4409,167.58,167.43,23.4941]
[1641341142557,34.88940786,167.58,167.43,23.7541]
[1641341143359,34.88940786,167.58,167.43,0.26]
[1641341143659,34.88940786,167.58,167.42,47.31291357]
[1641341143865,106.44,167.56,167.37,0.08121775]
[1641341144063,8.9624,167.53,167.37,0.08121775]
[1641341144263,58.1202,167.55,167.37,0.08121775]
[1641341144264,106.44,167.51,167.37,0.08121775]
[1641341144464,106.44,167.49,167.37,0.08121775]
[1641341144763,106.44,167.49,167.29,2.9624065]
[1641341144764,8.52,167.48,167.29,2.9624065]
[1641341145066,10.5836,167.48,167.29,2.9624065]
[1641341145463,10.5836,167.48,167.29,3.2224065]
[1641341145666,11.8705,167.48,167.29,3.7224065]
[1641341146280,11.8705,167.48,167.29,83.1227065]
[1641341146684,11.8705,167.48,167.3,1.44850786]
[1641341146886,11.8705,167.48,167.3,1.94850786]
[1641341147086,11.8705,167.48,167.3,0.5]
[1641341147285,11.8705,167.48,167.31,29.35497251]
[1641341147486,11.8705,167.48,167.31,30.11497251]
[1641341147687,11.8705,167.48,167.32,2.23383843]
[1641341148289,13.54851311,167.48,167.32,2.23383843]
[1641341148489,14.99702097,167.48,167.32,2.23383843]
[1641341148690,74.41702097,167.48,167.32,2.23383843]
[1641341149289,83.38212097,167.48,167.32,2.23383843]
[1641341150092,106.44,167.45,167.28,2.5405]
[1641341150292,8.52,167.44,167.27,24.6314]
[1641341150593,9.28,167.44,167.27,24.6314]
[1641341150996,30.28303016,167.43,167.27,24.6314]
[1641341151195,8.52,167.42,167.28,2.62800213]
[1641341151396,9.02,167.42,167.28,2.62800213]
[1641341151598,9.28,167.42,167.28,4.07650999]
[1641341151797,9.28,167.42,167.28,4.33650999]
[1641341152002,9.28,167.42,167.28,1.88800213]
[1641341152399,9.28,167.42,167.28,1.62800213]
[1641341153997,9.28,167.42,167.28,1.88800213]
[1641341155198,9.02,167.42,167.28,1.88800213]
[1641341155597,9.02,167.42,167.28,1.62800213]
[1641341156202,10.46850786,167.42,167.28,1.62800213]
[1641341156700,9.28,167.42,167.28,1.62800213]
[1641341157099,10.625,167.42,167.28,1.62800213]
[1641341157525,10.625,167.42,167.28,1.88800213]
[1641341157798,10.625,167.42,167.28,3.33650999]
[1641341157998,10.625,167.42,167.28,3.07650999]
[1641341158198,1.44850786,167.41,167.28,1.62800213]
[1641341158400,8.52,167.4,167.28,1.62800213]
[1641341158599,8.78,167.4,167.28,1.62800213]
[1641341158800,9.28,167.4,167.28,1.62800213]
[1641341158999,30.12311754,167.39,167.28,1.62800213]
[1641341159200,8.52,167.38,167.28,1.62800213]
[1641341159403,9.02,167.38,167.28,1.88800213]
[1641341159601,9.28,167.38,167.26,0.1]
[1641341159800,9.28,167.38,167.25,1.54850786]
[1641341160402,8.52,167.38,167.25,1.54850786]
[1641341160603,30.12311754,167.39,167.26,2.85956919]
[1641341160803,30.12311754,167.39,167.26,8.59356919]
[1641341161004,38.64311754,167.39,167.27,1.44850786]
[1641341161405,38.64311754,167.39,167.27,2.20850786]
[1641341161705,38.64311754,167.39,167.27,1.94850786]
[1641341161906,38.64311754,167.39,167.28,1.44850786]
[1641341162105,38.64311754,167.39,167.29,2.6901867]
[1641341162506,38.64311754,167.39,167.29,3.1901867]
[1641341162706,38.64311754,167.39,167.29,2.6901867]
[1641341163008,38.90311754,167.39,167.29,2.9501867]
[1641341163307,39.40311754,167.39,167.29,2.9501867]
[1641341163506,39.14311754,167.39,167.29,2.9501867]
[1641341164106,39.40311754,167.39,167.29,2.9501867]
[1641341165033,39.14311754,167.39,167.29,2.9501867]
[1641341165236,39.40311754,167.39,167.29,2.9501867]
[1641341165439,39.40311754,167.39,167.28,1.44850786]
[1641341165634,39.40311754,167.39,167.26,1.44850786]
[1641341165834,39.40311754,167.39,167.26,0.5]
[1641341166536,39.40311754,167.39,167.27,2.25343824]
[1641341166935,39.40311754,167.39,167.27,2.75343824]
[1641341167137,39.40311754,167.39,167.27,3.01343824]
[1641341168937,30.62311754,167.39,167.27,4.4619461]
[1641341169636,30.62311754,167.39,167.28,8.52]
[1641341169841,0.5,167.39,167.28,0.5]
[1641341170038,0.5,167.39,167.28,0.76]
[1641341170240,8.52,167.41,167.28,0.26]
[1641341170440,9.02,167.41,167.28,0.26]
[1641341170739,9.02,167.41,167.27,29.09293824]
[1641341170938,27.51091193,167.4,167.27,37.61293824]
[1641341171139,27.51091193,167.4,167.27,30.5414461]
[1641341171340,28.01091193,167.4,167.27,30.5414461]
[1641341171538,28.01091193,167.4,167.27,30.2814461]
[1641341171741,8.52,167.39,167.27,28.83293824]
[1641341171943,9.02,167.39,167.27,2.75343824]
[1641341172141,10.72850786,167.39,167.27,2.75343824]
[1641341172343,10.72850786,167.39,167.27,2.25343824]
[1641341172945,9.28,167.39,167.27,2.25343824]
[1641341173345,0.76,167.39,167.27,3.7019461]
[1641341173545,0.5,167.39,167.27,4.4619461]
[1641341173746,28.27091193,167.4,167.27,4.4619461]
[1641341173946,28.27091193,167.4,167.27,11.9289461]
[1641341174148,8.52,167.39,167.27,11.9289461]
[1641341175250,8.52,167.39,167.27,4.4619461]
[1641341175550,9.28,167.39,167.27,2.25343824]
[1641341176550,10.72850786,167.39,167.27,2.25343824]
[1641341178053,1.67801311,167.46,167.31,0.30298387]
[1641341178254,1.67801311,167.46,167.32,2.93472636]
[1641341178454,1.67801311,167.46,167.32,4.18492636]
[1641341178654,10.19801311,167.47,167.32,2.93472636]
[1641341178854,8.52,167.46,167.32,2.93472636]
[1641341179456,9.02,167.46,167.32,2.93472636]
[1641341179658,29.61112797,167.45,167.32,2.93472636]
[1641341179860,8.52,167.44,167.32,2.93472636]
[1641341180059,8.78,167.44,167.31,74.3017]
[1641341180260,9.28,167.44,167.31,74.3017]
[1641341180859,106.44,167.43,167.28,24.7427]
[1641341181058,114.96,167.42,167.29,2.18650664]
[1641341181459,115.72,167.42,167.29,2.18650664]
[1641341181661,26.65910453,167.41,167.29,2.18650664]
[1641341181861,8.52,167.4,167.29,2.18650664]
[1641341182061,8.78,167.4,167.29,2.18650664]
[1641341182260,9.28,167.4,167.28,23.4496]
[1641341183365,9.28,167.4,167.28,26.46843563]
[1641341183563,9.28,167.4,167.28,26.72843563]
[1641341184386,9.28,167.4,167.28,23.7096]
[1641341184685,9.28,167.4,167.26,1.2908]
[1641341185092,115.72,167.4,167.26,1.2908]
[1641341185495,115.72,167.4,167.21,0.75903074]
[1641341185686,106.44,167.36,167.21,0.75903074]
[1641341185886,106.44,167.33,167.21,0.75903074]
[1641341186086,8.52,167.32,167.21,0.75903074]
[1641341186489,8.52,167.32,167.21,3.04504462]
[1641341186490,30.74834217,167.31,167.21,3.04504462]
[1641341186686,8.52,167.3,167.21,0.75903074]
[1641341187187,8.78,167.3,167.21,0.75903074]
[1641341187388,8.52,167.3,167.21,0.75903074]
[1641341187590,8.78,167.3,167.21,0.75903074]
[1641341187887,8.78,167.3,167.21,3.36582631]
[1641341188287,8.52,167.3,167.21,3.36582631]
[1641341189888,8.02,167.3,167.21,3.36582631]
[1641341190093,8.02,167.3,167.21,3.62582631]
[1641341190292,8.02,167.3,167.21,4.12582631]
[1641341191090,8.02,167.3,167.21,3.62582631]
[1641341191289,8.02,167.3,167.21,3.36582631]
[1641341191591,8.28,167.3,167.21,2.60679557]
[1641341191993,8.02,167.3,167.21,2.60679557]
[1641341192593,8.78,167.3,167.21,2.60679557]
[1641341193993,8.78,167.3,167.21,2.86679557]
[1641341194193,8.02,167.3,167.21,2.86679557]
[1641341194993,30.74834217,167.31,167.21,3.36679557]
[1641341195196,30.74834217,167.31,167.22,28.80696491]
[1641341195395,1.67801311,167.36,167.22,35.56196491]
[1641341195594,1.67801311,167.36,167.24,2.47850895]
[1641341195795,2.17801311,167.36,167.24,2.47850895]
[1641341195995,0.5,167.36,167.24,3.23850895]